fUST/lending_fUST_20250606
["ID","MTS","AMOUNT","RATE_DAILY","PERIOD"]
[364690580,1749208250215,-409.04785281,0.00022191,2]
[364690581,1749208250225,-880.25,0.00022191,2]
[364690582,1749208250234,-440.0,0.00022191,2]
[364690583,1749208250243,-440.0,0.00022191,2]
[364690584,1749208250253,-420.94401641,0.00022191,2]
[364690585,1749208250262,-440.0,0.00022191,2]
[364690586,1749208250271,-400.8738898,0.00022191,2]
[364690587,1749208250281,-440.0,0.00022191,2]
[364690588,1749208250291,-440.0,0.00022191,2]
[364690589,1749208250300,-473.9403868,0.00022191,2]
[364690590,1749208250310,-706.33,0.00022191,2]
[364690591,1749208250320,-440.0,0.00022191,2]
[364690592,1749208250329,-380.0,0.00022191,2]
[364690593,1749208250339,-440.0,0.00022191,2]
[364690594,1749208250349,-440.0,0.00022191,2]
[364690595,1749208250358,-440.0,0.00022191,2]
[364690596,1749208250367,-440.0,0.00022191,2]
[364690597,1749208250378,-440.0,0.00022191,2]
[364690598,1749208250387,-440.0,0.00022191,2]
[364690599,1749208250397,-440.0,0.00022191,2]
[364690600,1749208250408,-440.0,0.00022191,2]
[364690601,1749208250418,-440.0,0.00022191,2]
[364690602,1749208250427,-490.39,0.00022191,2]
[364690603,1749208250439,-440.0,0.00022191,2]
[364690604,1749208250448,-440.0,0.00022191,2]
[364690605,1749208250458,-440.0,0.00022191,2]
[364690606,1749208250467,-420.0,0.00022191,2]
[364690607,1749208250478,-440.0,0.00022191,2]
[364690608,1749208250487,-442.64456056,0.00022191,2]
[364690609,1749208250497,-355.45838397,0.00022191,2]
[364690610,1749208250506,-440.0,0.00022191,2]
[364690611,1749208250516,-440.0,0.00022191,2]
[364690612,1749208250525,-440.0,0.00022191,2]
[364690613,1749208250535,-440.0,0.00022191,2]
[364690614,1749208250544,-440.0,0.00022191,2]
[364690615,1749208250554,-440.0,0.00022191,2]
[364690616,1749208250563,-1051.41,0.00022191,2]
[364690617,1749208250573,-440.0,0.00022191,2]
[364690618,1749208250583,-440.0,0.00022191,2]
[364690619,1749208250592,-440.0,0.00022191,2]
[364690620,1749208250602,-440.0,0.00022191,2]
[364690621,1749208250611,-317.10424931,0.00022191,2]
[364690622,1749208250621,-494.74056576,0.00022191,2]
[364690623,1749208250631,-440.0,0.00022191,2]
[364690624,1749208250640,-743.09,0.00022191,2]
[364690625,1749208250650,-440.0,0.00022191,2]
[364690626,1749208250660,-440.0,0.00022191,2]
[364690627,1749208250669,-440.0,0.00022191,2]
[364690628,1749208250678,-440.0,0.00022191,2]
[364690629,1749208250688,-473.51,0.00022191,2]
[364690630,1749208250698,-420.0,0.00022191,2]
[364690631,1749208250708,-440.0,0.00022191,2]
[364690632,1749208250718,-440.0,0.00022191,2]
[364690633,1749208250727,-420.0,0.00022191,2]
[364690634,1749208250737,-336.88039715,0.00022191,2]
[364690635,1749208250746,-423.96518286,0.00022191,2]
[364690636,1749208250756,-420.58663699,0.00022191,2]
[364690637,1749208250766,-440.0,0.00022191,2]
[364690638,1749208250776,-440.0,0.00022191,2]
[364690639,1749208250786,-440.0,0.00022191,2]
[364690640,1749208250796,-440.0,0.00022191,2]
[364690641,1749208250806,-440.0,0.00022191,2]
[364690642,1749208250816,-423.05474982,0.00022191,2]
[364690643,1749208250825,-413.9552254,0.00022191,2]
[364690644,1749208250835,-422.4930032,0.00022191,2]
[364690645,1749208250845,-370.0,0.00022191,2]
[364690646,1749208250855,-440.0,0.00022191,2]
[364690647,1749208250864,-440.0,0.00022191,2]
[364690648,1749208250875,-440.0,0.00022191,2]
[364690649,1749208250885,-392.63439847,0.00022191,2]
[364690650,1749208250894,-440.0,0.00022191,2]
[364690651,1749208250904,-440.0,0.00022191,2]
[364690652,1749208250914,-371.80143351,0.00022191,2]
[364690653,1749208250923,-430.0,0.00022191,2]
[364690654,1749208250933,-430.0,0.00022191,2]
[364690655,1749208250942,-440.0,0.00022191,2]
[364690656,1749208250952,-420.0,0.00022191,2]
[364690657,1749208250961,-410.0,0.00022191,2]
[364690658,1749208250971,-440.0,0.00022191,2]
[364690659,1749208250981,-430.0,0.00022191,2]
[364690660,1749208250990,-440.0,0.00022191,2]
[364690661,1749208251000,-322.23645298,0.00022191,2]
[364690662,1749208251011,-448.87749229,0.00022191,2]
[364690663,1749208251020,-996.55,0.00022191,2]
[364690664,1749208251030,-440.0,0.00022191,2]
[364690665,1749208251039,-440.0,0.00022191,2]
[364690666,1749208251049,-440.0,0.00022191,2]
[364690667,1749208251059,-440.0,0.00022191,2]
[364690668,1749208251069,-440.0,0.00022191,2]
[364690669,1749208251078,-440.0,0.00022191,2]
[364690670,1749208251087,-440.0,0.00022191,2]
[364690671,1749208251096,-440.0,0.00022191,2]
[364690672,1749208251106,-430.0,0.00022191,2]
[364690673,1749208251115,-420.0,0.00022191,2]
[364690674,1749208251127,-430.0,0.00022191,2]
[364690675,1749208251137,-432.12353786,0.00022191,2]
[364690676,1749208251146,-440.0,0.00022191,2]
[364690677,1749208251156,-201.61832638,0.00022191,2]
[364690678,1749208251165,-440.0,0.00022191,2]
[364690679,1749208251239,-440.0,0.00022191,2]
[364690680,1749208251249,-437.21850817,0.00022191,2]
[364690681,1749208251258,-440.0,0.00022191,2]
[364690682,1749208251268,-424.06675205,0.00022191,2]
[364690683,1749208251276,-440.0,0.00022191,2]
[364690684,1749208251285,-440.0,0.00022191,2]
[364690685,1749208251294,-578.4862052,0.00022191,2]
[364690686,1749208251303,-420.0,0.00022191,2]
[364690687,1749208251312,-573.81898444,0.00022191,2]
[364690688,1749208251321,-400.0,0.00022191,2]
[364690689,1749208251330,-440.0,0.00022191,2]
[364690690,1749208251340,-440.0,0.00022191,2]
[364690691,1749208251349,-440.0,0.00022191,2]
[364690692,1749208251359,-440.0,0.00022191,2]
[364690693,1749208251368,-3712.12,0.00022191,2]
[364690694,1749208251378,-440.0,0.00022191,2]
[364690695,1749208251387,-440.0,0.00022191,2]
[364690696,1749208251396,-440.0,0.00022191,2]
[364690697,1749208251406,-440.0,0.00022191,2]
[364690698,1749208251415,-440.0,0.00022191,2]
[364690699,1749208251424,-440.0,0.00022191,2]
[364690700,1749208251434,-433.32314977,0.00022191,2]
[364690701,1749208251445,-440.0,0.00022191,2]
[364690702,1749208251455,-440.0,0.00022191,2]
[364690703,1749208251463,-440.0,0.00022191,2]
[364690704,1749208251473,-430.0,0.00022191,2]
[364690705,1749208251482,-440.0,0.00022191,2]
[364690706,1749208251491,-478.0279735,0.00022191,2]
[364690707,1749208251501,-440.0,0.00022191,2]
[364690708,1749208251510,-440.0,0.00022191,2]
[364690709,1749208251521,-440.0,0.00022191,2]
[364690710,1749208251531,-1189.9,0.00022191,2]
[364690711,1749208251540,-420.0,0.00022191,2]
[364690712,1749208251549,-440.0,0.00022191,2]
[364690713,1749208251559,-440.0,0.00022191,2]
[364690714,1749208251568,-391.27885011,0.00022191,2]
[364690715,1749208251578,-420.0,0.00022191,2]
[364690716,1749208251588,-451.83,0.00022191,2]
[364690717,1749208251598,-1232.13,0.00022191,2]
[364690718,1749208251607,-440.0,0.00022191,2]
[364690719,1749208251617,-440.0,0.00022191,2]
[364690720,1749208251628,-440.0,0.00022191,2]
[364690721,1749208251638,-440.0,0.00022191,2]
[364690722,1749208251647,-440.0,0.00022191,2]
[364690723,1749208251657,-440.0,0.00022191,2]
[364690724,1749208251667,-440.0,0.00022191,2]
[364690725,1749208251676,-440.0,0.00022191,2]
[364690726,1749208251686,-191.742793,0.00022191,7]
[364690727,1749208251695,-320.378766,0.00022191,2]
[364690728,1749208251705,-440.0,0.00022191,2]
[364690729,1749208251714,-440.0,0.00022191,2]
[364690730,1749208251724,-440.0,0.00022191,2]
[364690731,1749208251735,-250.0,0.00022191,2]
[364690732,1749208251744,-440.0,0.00022191,2]
[364690733,1749208251754,-440.0,0.00022191,2]
[364690734,1749208251764,-339.33638042,0.00022191,2]
[364690735,1749208251774,-440.0,0.00022191,2]
[364690736,1749208251783,-440.0,0.00022191,2]
[364690737,1749208251792,-440.0,0.00022191,2]
[364690738,1749208251801,-430.0,0.00022191,2]
[364690739,1749208251811,-300.0,0.00022191,2]
[364690740,1749208251821,-440.0,0.00022191,2]
[364690741,1749208251830,-440.0,0.00022191,2]
[364690742,1749208251840,-440.0,0.00022191,2]
[364690743,1749208251849,-440.0,0.00022191,2]
[364690744,1749208251859,-440.0,0.00022191,2]
[364690745,1749208251870,-554.55,0.00022191,2]
[364690746,1749208251879,-416.11702635,0.00022191,2]
[364690747,1749208251888,-440.0,0.00022191,2]
[364690748,1749208251898,-158.81995879,0.00022191,2]
[364690749,1749208251908,-440.0,0.00022191,2]
[364690750,1749208251918,-440.0,0.00022191,2]
[364690751,1749208251928,-371.6777489,0.00022191,2]
[364690752,1749208251939,-440.0,0.00022191,2]
[364690753,1749208251948,-440.0,0.00022191,2]
[364690754,1749208251957,-440.0,0.00022191,2]
[364690755,1749208251969,-440.0,0.00022191,2]
[364690756,1749208251978,-713.45,0.00022191,2]
[364690757,1749208251987,-440.0,0.00022191,2]
[364690758,1749208251997,-440.0,0.00022191,2]
[364690759,1749208252006,-440.0,0.00022191,2]
[364690760,1749208252016,-440.0,0.00022191,2]
[364690761,1749208252026,-797.93,0.00022191,2]
[364690762,1749208252035,-440.0,0.00022191,2]
[364690763,1749208252046,-440.0,0.00022191,2]
[364690764,1749208252058,-440.0,0.00022191,2]
[364690765,1749208252069,-440.0,0.00022191,2]
[364690766,1749208252079,-4936.21,0.00022191,2]
[364690767,1749208252088,-440.0,0.00022191,2]
[364690768,1749208252098,-440.0,0.00022191,2]
[364690769,1749208252107,-440.0,0.00022191,2]
[364690770,1749208252116,-390.0,0.00022191,2]
[364690771,1749208252126,-500.0,0.00022191,5]
[364690772,1749208252135,-440.0,0.00022191,2]
[364690773,1749208252144,-4681.65,0.00022191,2]
[364690774,1749208252153,-440.0,0.00022191,2]
[364690775,1749208252164,-440.0,0.00022191,2]
[364690776,1749208252175,-440.0,0.00022191,2]
[364690777,1749208252185,-440.0,0.00022191,2]
[364690778,1749208252195,-440.0,0.00022191,2]
[364690779,1749208252204,-440.0,0.00022191,2]
[364690780,1749208252213,-744.29,0.00022191,2]
[364690781,1749208252222,-440.0,0.00022191,2]
[364690782,1749208252232,-3000.48,0.00022191,2]
[364690783,1749208252241,-440.0,0.00022191,2]
[364690784,1749208252251,-440.0,0.00022191,2]
[364690785,1749208252260,-440.0,0.00022191,2]
[364690786,1749208252269,-423.54504215,0.00022191,2]
[364690787,1749208252278,-537.09890554,0.00022191,2]
[364690788,1749208252288,-440.0,0.00022191,2]
[364690789,1749208252357,-440.0,0.00022191,2]
[364690790,1749208252366,-420.0,0.00022191,2]
[364690791,1749208252376,-1192.64,0.00022191,2]
[364690792,1749208252385,-1070.68,0.00022191,2]
[364690793,1749208252395,-440.0,0.00022191,2]
[364690794,1749208252405,-1944.33,0.00022191,2]
[364690795,1749208252414,-440.0,0.00022191,2]
[364690796,1749208252423,-500.0,0.00022191,2]
[364690797,1749208252433,-861.46,0.00022191,2]
[364690798,1749208252445,-400.0,0.00022191,2]
[364690799,1749208252454,-424.92044058,0.00022191,2]
[364690800,1749208252463,-421.39593358,0.00022191,2]
[364690801,1749208252475,-440.0,0.00022191,2]
[364690802,1749208252485,-440.0,0.00022191,2]
[364690803,1749208252495,-440.0,0.00022191,2]
[364690804,1749208252504,-430.0,0.00022191,2]
[364690805,1749208252515,-440.0,0.00022191,2]
[364690806,1749208252526,-440.0,0.00022191,2]
[364690807,1749208252536,-440.0,0.00022191,2]
[364690808,1749208252545,-440.0,0.00022191,2]
[364690809,1749208252557,-608.5,0.00022191,2]
[364690810,1749208252566,-1769.86,0.00022191,2]
[364690811,1749208252576,-447.48818234,0.00022191,2]
[364690812,1749208252586,-1639.72,0.00022191,2]
[364690813,1749208252595,-440.0,0.00022191,2]
[364690814,1749208252605,-440.0,0.00022191,2]
[364690815,1749208252615,-183.42697109,0.00022191,2]
[364690816,1749208252625,-440.0,0.00022191,2]
[364690817,1749208252635,-572.25,0.00022191,2]
[364690818,1749208252645,-440.0,0.00022191,2]
[364690819,1749208252655,-426.46983865,0.00022191,2]
[364690820,1749208252664,-440.0,0.00022191,2]
[364690821,1749208252674,-201.6062297,0.00022191,2]
[364690822,1749208252683,-524.53,0.00022191,2]
[364690823,1749208252694,-440.0,0.00022191,2]
[364690824,1749208252704,-493.26608209,0.00022191,2]
[364690825,1749208252714,-410.0,0.00022191,2]
[364690826,1749208252724,-440.0,0.00022191,2]
[364690827,1749208252733,-440.0,0.00022191,2]
[364690828,1749208252743,-440.0,0.00022191,2]
[364690829,1749208252753,-440.0,0.00022191,2]
[364690830,1749208252762,-400.0,0.00022191,2]
[364690831,1749208252771,-440.0,0.00022191,2]
[364690832,1749208252781,-440.0,0.00022191,2]
[364690833,1749208252790,-498.2,0.00022191,2]
[364690834,1749208252799,-440.0,0.00022191,2]
[364690835,1749208252809,-1771.61,0.00022191,2]
[364690836,1749208252819,-440.0,0.00022191,2]
[364690837,1749208252829,-1057.09,0.00022191,2]
[364690838,1749208252838,-425.16064833,0.00022191,2]
[364690839,1749208252848,-395.11338876,0.00022191,2]
[364690840,1749208252857,-440.0,0.00022191,2]
[364690841,1749208252866,-440.0,0.00022191,2]
[364690842,1749208252876,-2442.36,0.00022191,2]
[364690843,1749208252885,-440.0,0.00022191,2]
[364690844,1749208252895,-440.0,0.00022191,2]
[364690845,1749208252904,-440.0,0.00022191,2]
[364690846,1749208252913,-486.94,0.00022191,2]
[364690847,1749208252922,-440.0,0.00022191,2]
[364690848,1749208252932,-440.0,0.00022191,2]
[364690849,1749208252941,-440.0,0.00022191,2]
[364690850,1749208252951,-470.12,0.00022191,2]
[364690851,1749208252961,-440.0,0.00022191,2]
[364690852,1749208252970,-440.0,0.00022191,2]
[364690853,1749208252979,-818.92,0.00022191,2]
[364690854,1749208252988,-440.0,0.00022191,2]
[364690855,1749208252997,-440.0,0.00022191,2]
[364690856,1749208253007,-440.0,0.00022191,2]
[364690857,1749208253016,-429.11901923,0.00022191,2]
[364690858,1749208253025,-230.38130445,0.00022191,2]
[364690859,1749208253034,-440.0,0.00022191,2]
[364690860,1749208253044,-440.0,0.00022191,2]
[364690861,1749208253055,-440.0,0.00022191,2]
[364690862,1749208253064,-416.00695728,0.00022191,2]
[364690863,1749208253074,-420.0,0.00022191,2]
[364690864,1749208253083,-356.59886749,0.00022191,2]
[364690865,1749208253092,-440.0,0.00022191,2]
[364690866,1749208253102,-440.0,0.00022191,2]
[364690867,1749208253111,-440.0,0.00022191,2]
[364690868,1749208253120,-465.66784215,0.00022191,2]
[364690869,1749208253130,-422.0949607,0.00022191,2]
[364690870,1749208253140,-440.0,0.00022191,2]
[364690871,1749208253150,-440.0,0.00022191,2]
[364690872,1749208253159,-227.19952512,0.00022191,2]
[364690873,1749208253169,-440.0,0.00022191,2]
[364690874,1749208253178,-440.0,0.00022191,2]
[364690875,1749208253188,-264.56814957,0.00022191,2]
[364690876,1749208253198,-440.0,0.00022191,2]
[364690877,1749208253207,-440.0,0.00022191,2]
[364690878,1749208253216,-440.0,0.00022191,2]
[364690879,1749208253225,-440.0,0.00022191,2]
[364690880,1749208253235,-440.0,0.00022191,2]
[364690881,1749208253244,-440.0,0.00022191,2]
[364690882,1749208253253,-158.18578969,0.00022191,2]
[364690883,1749208253262,-440.0,0.00022191,2]
[364690884,1749208253271,-440.0,0.00022191,2]
[364690885,1749208253280,-440.0,0.00022191,2]
[364690886,1749208253290,-440.0,0.00022191,2]
[364690887,1749208253299,-440.0,0.00022191,2]
[364690888,1749208253308,-273.39942478,0.00022191,2]
[364690889,1749208253317,-681.11,0.00022191,2]
[364690890,1749208253381,-440.0,0.00022191,2]
[364690891,1749208253397,-988.23,0.00022191,2]
[364690892,1749208253407,-440.0,0.00022191,2]
[364690893,1749208253417,-440.0,0.00022191,2]
[364690894,1749208253428,-205.69755634,0.00022191,2]
[364690895,1749208253441,-300.46151265,0.00022191,2]
[364690896,1749208253450,-440.0,0.00022191,2]
[364690897,1749208253459,-431.54354014,0.00022191,2]
[364690898,1749208253468,-440.0,0.00022191,2]
[364690899,1749208253478,-440.0,0.00022191,2]
[364690900,1749208253487,-393.67905227,0.00022191,2]
[364690901,1749208253497,-171.4259263,0.00022191,2]
[364690902,1749208253506,-440.0,0.00022191,2]
[364690903,1749208253517,-440.0,0.00022191,2]
[364690904,1749208253527,-440.0,0.00022191,2]
[364690905,1749208253537,-3244.81,0.00022191,2]
[364690906,1749208253546,-2240.57,0.00022191,2]
[364690907,1749208253556,-1989.85,0.00022191,2]
[364690908,1749208253566,-440.0,0.00022191,2]
[364690909,1749208253575,-440.0,0.00022191,2]
[364690910,1749208253585,-1580.17,0.00022191,2]
[364690911,1749208253594,-943.15,0.00022191,2]
[364690912,1749208253604,-440.0,0.00022191,2]
[364690913,1749208253614,-6747.86,0.00022191,2]
[364690914,1749208253624,-440.0,0.00022191,2]
[364690915,1749208253634,-440.0,0.00022191,2]
[364690916,1749208253643,-185.45516378,0.00022191,2]
[364690917,1749208253653,-440.0,0.00022191,2]
[364690918,1749208253663,-440.0,0.00022191,2]
[364690919,1749208253672,-440.0,0.00022191,2]
[364690920,1749208253681,-440.0,0.00022191,2]
[364690921,1749208253691,-440.0,0.00022191,2]
[364690922,1749208253702,-440.0,0.00022191,2]
[364690923,1749208253711,-440.0,0.00022191,2]
[364690924,1749208253721,-440.0,0.00022191,2]
[364690925,1749208253730,-4117.32,0.00022191,2]
[364690926,1749208253740,-440.0,0.00022191,2]
[364690927,1749208253750,-440.0,0.00022191,2]
[364690928,1749208253759,-430.0,0.00022191,2]
[364690929,1749208253769,-517.04,0.00022191,2]
[364690930,1749208253778,-440.0,0.00022191,2]
[364690931,1749208253788,-440.0,0.00022191,2]
[364690932,1749208253797,-460.0,0.00022191,2]
[364690933,1749208253806,-718.67,0.00022191,2]
[364690934,1749208253816,-440.0,0.00022191,2]
[364690935,1749208253825,-440.0,0.00022191,2]
[364690936,1749208253835,-440.0,0.00022191,2]
[364690937,1749208253856,-440.0,0.00022191,2]
[364690938,1749208253872,-440.0,0.00022191,2]
[364690939,1749208253891,-448.56,0.00022191,2]
[364690940,1749208253912,-440.0,0.00022191,2]
[364690941,1749208253930,-379.01557526,0.00022191,2]
[364690942,1749208253946,-440.0,0.00022191,2]
[364690943,1749208253964,-312.63731051,0.00022191,2]
[364690944,1749208253977,-542.03,0.00022191,2]
[364690945,1749208253995,-457.11767686,0.00022191,2]
[364690946,1749208254015,-1229.28,0.00022191,2]
[364690947,1749208254031,-440.0,0.00022191,2]
[364690948,1749208254045,-440.0,0.00022191,2]
[364690949,1749208254064,-440.0,0.00022191,2]
[364690950,1749208254080,-440.0,0.00022191,2]
[364690951,1749208254093,-440.0,0.00022191,2]
[364690952,1749208254107,-440.0,0.00022191,2]
[364690953,1749208254121,-4617.81,0.00022191,2]
[364690954,1749208254136,-706.65,0.00022191,2]
[364690955,1749208254150,-599.5,0.00022191,2]
[364690956,1749208254165,-440.0,0.00022191,2]
[364690957,1749208254180,-405.91141148,0.00022191,2]
[364690958,1749208254193,-440.0,0.00022191,2]
[364690959,1749208254208,-320.58618859,0.00022191,2]
[364690960,1749208254222,-440.0,0.00022191,2]
[364690961,1749208254236,-552.09,0.00022191,2]
[364690962,1749208254251,-440.0,0.00022191,2]
[364690963,1749208254266,-440.0,0.00022191,2]
[364690964,1749208254281,-512.84,0.00022191,2]
[364690965,1749208254295,-440.0,0.00022191,2]
[364690966,1749208254310,-440.0,0.00022191,2]
[364690967,1749208254325,-431.83395924,0.00022191,2]
[364690968,1749208254340,-440.0,0.00022191,2]
[364690969,1749208254356,-440.0,0.00022191,2]
[364690970,1749208254371,-591.15,0.00022191,2]
[364690971,1749208254387,-479.84832364,0.00022191,2]
[364690972,1749208254402,-440.0,0.00022191,2]
[364690973,1749208254417,-440.0,0.00022191,2]
[364690974,1749208254434,-133120.59,0.000222,7]
[364690975,1749208254453,-151.0,0.000222,7]
[364690976,1749208254468,-315.04936747,0.000222,7]
[364690977,1749208254483,-11849.89752062,0.000222,7]
[364690978,1749208254498,-842.5625,0.000222,7]
[364690979,1749208254513,-212.976918,0.000222,7]
[364690980,1749208254529,-3760.6,0.0002221,6]
[364690981,1749208254544,-5326.47285906,0.0002221,6]
[364690982,1749208254559,-500.0,0.00022293,2]
[364690983,1749208254574,-151.0,0.000223,5]
[364690984,1749208254676,-6821.44282732,0.00022365,2]
[364690985,1749208254685,-5326.47285906,0.00022417,7]
[364690986,1749208254696,-500.0,0.00022444,2]
[364690987,1749208254705,-500.0,0.00022444,2]
[364690988,1749208254714,-151.0,0.00022445,7]
[364690989,1749208254724,-500.0,0.00022456,2]
[364690990,1749208254734,-500.0,0.00022456,2]
[364690991,1749208254743,-500.0,0.00022457,2]
[364690992,1749208254753,-500.0,0.00022457,2]
[364690993,1749208254762,-6188.16742442,0.00022458,2]
[364690994,1749208254771,-151.0,0.00022461,2]
[364690995,1749208254780,-626.0,0.00022461,2]
[364690996,1749208254790,-155.57692534,0.00022461,2]
[364690997,1749208254799,-151.0,0.00022461,2]
[364690998,1749208254808,-151.0,0.00022461,2]
[364690999,1749208254817,-151.0,0.00022461,2]
[364691000,1749208254826,-152.57428878,0.00022461,2]
[364691001,1749208254836,-151.0,0.00022461,2]
[364691002,1749208254845,-151.0,0.00022461,2]
[364691003,1749208254853,-151.0,0.00022461,2]
[364691004,1749208254862,-151.0,0.00022461,2]
[364691005,1749208254872,-151.0,0.00022461,2]
[364691006,1749208254881,-11849.89752062,0.00022465,2]
[364691007,1749208254890,-160.0,0.00022465,2]
[364691008,1749208254899,-398.50866205,0.00022465,2]
[364691009,1749208254908,-458.29636116,0.00022465,2]
[364691010,1749208254918,-411.46357349,0.00022465,2]
[364691011,1749208254927,-440.0,0.00022465,2]
[364691012,1749208254935,-440.0,0.00022465,2]
[364691013,1749208254945,-440.0,0.00022465,2]
[364691014,1749208254955,-420.0,0.00022465,2]
[364691015,1749208254964,-440.0,0.00022465,2]
[364691016,1749208254973,-286.261428,0.00022465,7]
[364691017,1749208254983,-440.0,0.00022465,2]
[364691018,1749208254992,-440.0,0.00022465,2]
[364691019,1749208255001,-440.0,0.00022465,2]
[364691020,1749208255010,-440.0,0.00022465,2]
[364691021,1749208255019,-440.0,0.00022465,2]
[364691022,1749208255028,-440.0,0.00022465,2]
[364691023,1749208255037,-440.0,0.00022465,2]
[364691024,1749208255046,-440.0,0.00022465,2]
[364691025,1749208255057,-440.0,0.00022465,2]
[364691026,1749208255066,-440.0,0.00022465,2]
[364691027,1749208255076,-440.0,0.00022465,2]
[364691028,1749208255085,-440.0,0.00022465,2]
[364691029,1749208255094,-440.0,0.00022465,2]
[364691030,1749208255104,-540.97795758,0.00022465,2]
[364691031,1749208255113,-440.0,0.00022465,2]
[364691032,1749208255123,-440.0,0.00022465,2]
[364691033,1749208255132,-440.0,0.00022465,2]
[364691034,1749208255142,-440.0,0.00022465,2]
[364691035,1749208255155,-440.0,0.00022465,2]
[364691036,1749208255165,-440.0,0.00022465,2]
[364691037,1749208255174,-440.0,0.00022465,2]
[364691038,1749208255183,-151.0,0.00022465,7]
[364691039,1749208255193,-440.0,0.00022465,2]
[364691040,1749208255202,-151.0,0.00022465,7]
[364691041,1749208255212,-398.13228667,0.00022465,2]
[364691042,1749208255221,-440.0,0.00022465,2]
[364691043,1749208255230,-403.51471897,0.00022465,2]
[364691044,1749208255239,-190.15252427,0.00022465,2]
[364691045,1749208255249,-440.0,0.00022465,2]
[364691046,1749208255258,-440.0,0.00022465,2]
[364691047,1749208255267,-440.0,0.00022465,2]
[364691048,1749208255276,-440.0,0.00022465,2]
[364691049,1749208255286,-440.0,0.00022465,2]
[364691050,1749208255296,-410.39311907,0.00022465,2]
[364691051,1749208255305,-440.0,0.00022465,2]
[364691052,1749208255314,-440.0,0.00022465,2]
[364691053,1749208255323,-440.0,0.00022465,2]
[364691054,1749208255334,-440.0,0.00022465,2]
[364691055,1749208255343,-440.0,0.00022465,2]
[364691056,1749208255352,-440.0,0.00022465,2]
[364691057,1749208255362,-500.0,0.00022465,2]
[364691058,1749208255372,-440.0,0.00022465,2]
[364691059,1749208255382,-437.68096546,0.00022465,2]
[364691060,1749208255391,-440.0,0.00022465,2]
[364691061,1749208255400,-440.0,0.00022465,2]
[364691062,1749208255410,-440.0,0.00022465,2]
[364691063,1749208255420,-396.67976486,0.00022465,2]
[364691064,1749208255429,-440.0,0.00022465,2]
[364691065,1749208255442,-440.0,0.00022465,2]
[364691066,1749208255451,-400.94274445,0.00022465,2]
[364691067,1749208255461,-440.0,0.00022465,2]
[364691068,1749208255470,-437.32751825,0.00022465,2]
[364691069,1749208255481,-440.0,0.00022465,2]
[364691070,1749208255490,-440.0,0.00022465,2]
[364691071,1749208255500,-440.0,0.00022465,2]
[364691072,1749208255510,-440.0,0.00022465,2]
[364691073,1749208255521,-440.0,0.00022465,2]
[364691074,1749208255532,-417.0046739,0.00022465,2]
[364691075,1749208255542,-440.0,0.00022465,2]
[364691076,1749208255551,-440.0,0.00022465,2]
[364691077,1749208255561,-586.4959568,0.00022465,2]
[364691078,1749208255571,-440.0,0.00022465,2]
[364691079,1749208255580,-440.0,0.00022465,2]